bitfinex-derivatives/quotes_ETHF0:USTF0_20230902
["timestamp","ask_amount","ask_price","bid_price","bid_amount"]
[1693647167886,15.53416392,1633.6,1633.5,4.59609405]
[1693647168384,17.83048392,1633.6,1633.5,4.59609405]
[1693647169686,17.83048392,1633.6,1633.5,2.29972405]
[1693647178290,17.83048392,1633.6,1633.5,4.59618405]
[1693647179781,17.83048392,1633.6,1633.5,2.29972405]
[1693647180287,17.83048392,1633.6,1633.5,4.59618405]
[1693647180692,17.83048392,1633.6,1633.5,6.89264405]
[1693647180890,5.54150392,1633.6,1633.5,12.05626757]
[1693647191300,10.19534392,1633.6,1633.5,9.75980757]
[1693647191499,10.19534392,1633.6,1633.5,6.89264405]
[1693647191695,13.04364392,1633.6,1633.5,6.89264405]
[1693647191896,16.08694392,1633.6,1633.5,9.18910405]
[1693647193799,16.08694392,1633.6,1633.5,6.89264405]
[1693647194102,18.38326392,1633.6,1633.5,6.89264405]
[1693647202813,18.38326392,1633.6,1633.5,9.75980757]
[1693647206208,18.38326392,1633.6,1633.5,6.89264405]
[1693647207714,18.38326392,1633.6,1633.5,9.75980757]
[1693647208113,18.38326392,1633.6,1633.5,6.89264405]
[1693647211215,18.38326392,1633.6,1633.5,9.75980757]
[1693647211517,18.86561145,1633.6,1633.5,9.75980757]
[1693647212411,11.97665145,1633.6,1633.5,12.05626757]
[1693647213412,14.27302145,1633.6,1633.5,12.05626757]
[1693647213812,16.56939145,1633.6,1633.5,12.05626757]
[1693647214311,14.27300145,1633.6,1633.5,12.05626757]
[1693647214517,11.97665145,1633.6,1633.5,12.05626757]
[1693647214716,8.93335145,1633.6,1633.5,12.05626757]
[1693647217022,6.02385145,1633.6,1633.5,12.05626757]
[1693647219423,5.54150392,1633.6,1633.5,12.05626757]
[1693647219620,0.02250392,1633.6,1633.5,12.05626757]
[1693647220217,0.02250392,1633.7,1633.5,12.05626757]
[1693647220423,0.02250392,1633.6,1633.5,12.05626757]
[1693647220820,0.02250392,1633.7,1633.5,12.05626757]
[1693647221015,8.42511937,1633.8,1633.6,2.26993648]
[1693647221219,8.42511937,1633.8,1633.7,9.18476]
[1693647221416,8.44762827,1633.8,1633.7,12.05520599]
[1693647221822,10.74370827,1633.8,1633.7,12.05520599]
[1693647223228,10.74369827,1633.8,1633.7,12.05520599]
[1693647223725,8.44762827,1633.8,1633.7,12.05520599]
[1693647224214,6.03342827,1633.8,1633.7,12.05520599]
[1693647224712,10.62558827,1633.8,1633.7,12.05520599]
[1693647227524,8.32950827,1633.8,1633.7,12.05520599]
[1693647228223,6.03342827,1633.8,1633.7,12.05520599]
[1693647228427,8.32951827,1633.8,1633.7,12.05520599]
[1693647229123,10.62560827,1633.8,1633.7,12.05520599]
[1693647229324,8.32951827,1633.8,1633.7,12.05520599]
[1693647231133,6.03342827,1633.8,1633.7,12.05520599]
[1693647232528,10.68676827,1633.8,1633.7,6.89185247]
[1693647232726,12.98283827,1633.8,1633.7,4.59566247]
[1693647233124,15.27890827,1633.8,1633.7,2.29947247]
[1693647233329,12.98283827,1633.8,1633.7,6.89189247]
[1693647234522,12.98283827,1633.8,1633.7,4.59568247]
[1693647234927,15.27892827,1633.8,1633.7,2.29947247]
[1693647235134,15.27892827,1633.8,1633.7,4.59573247]
[1693647236631,15.27892827,1633.8,1633.7,2.29947247]
[1693647237236,15.27892827,1633.8,1633.7,4.59572247]
[1693647237940,20.79792827,1633.8,1633.7,2.29950247]
[1693647238244,20.79792827,1633.8,1633.7,2.29949247]
[1693647239440,20.79792827,1633.8,1633.7,4.59245]
[1693647242542,18.50183827,1633.8,1633.7,6.88869]
[1693647243439,18.50183827,1633.8,1633.7,9.75907772]
[1693647244032,18.50183827,1633.8,1633.7,6.8919142]
[1693647244644,18.50183827,1633.8,1633.7,9.75907772]
[1693647245343,18.50183827,1633.8,1633.7,6.8919142]
[1693647246345,18.50183827,1633.8,1633.7,9.75907772]
[1693647246547,18.50183827,1633.8,1633.7,6.8919142]
[1693647251150,18.50183827,1633.8,1633.7,9.75907772]
[1693647252050,12.98283827,1633.8,1633.7,9.75907772]
[1693647252250,12.98283827,1633.8,1633.7,6.8919142]
[1693647252649,12.98283827,1633.8,1633.7,9.75907772]
[1693647261851,18.50183827,1633.8,1633.7,9.75907772]
[1693647263155,18.50183827,1633.8,1633.7,4.5956742]
[1693647270364,18.50183827,1633.8,1633.7,7.46283772]
[1693647274365,18.50183827,1633.8,1633.7,4.5956742]
[1693647275669,18.50183827,1633.8,1633.7,7.46283772]
[1693647279565,30.14617975,1633.8,1633.7,7.46283772]
[1693647279771,18.50183827,1633.8,1633.7,7.46283772]
[1693647281177,18.50183827,1633.8,1633.7,4.5956742]
[1693647289172,20.79792827,1633.8,1633.7,4.5956742]
[1693647296585,20.79792827,1633.8,1633.7,7.46283772]
[1693647297188,20.79792827,1633.8,1633.7,4.5956742]
[1693647304398,32.44226975,1633.8,1633.7,4.5956742]
[1693647310000,20.79792827,1633.8,1633.7,4.5956742]
[1693647316200,20.79792827,1633.8,1633.7,7.46283772]
[1693647317999,20.79792827,1633.8,1633.7,4.5956742]
[1693647325311,32.51976513,1633.8,1633.7,4.5956742]
[1693647330710,20.79792827,1633.8,1633.7,4.5956742]
[1693647342417,20.79792827,1633.8,1633.7,4.59245]
[1693647353232,20.79792827,1633.8,1633.7,6.88869]
[1693647355428,32.51976513,1633.8,1633.7,4.59245]
[1693647355621,20.79792827,1633.8,1633.7,4.59245]
[1693647369241,32.5243628,1633.8,1633.7,4.59245]
[1693647370035,20.79792827,1633.8,1633.7,4.59245]
[1693647370734,32.5243628,1633.8,1633.7,4.59245]
[1693647370933,20.79792827,1633.8,1633.7,4.59245]
[1693647386252,10.0,1633.6,1633.4,2.2965]
[1693647386444,10.0,1633.6,1633.3,7.81566]
[1693647386445,9.2083489,1633.5,1633.3,6.99202]
[1693647386647,5.5415089,1633.4,1633.3,6.99202]
[1693647386850,12.4313089,1633.4,1633.3,6.99202]
[1693647387056,12.4313089,1633.4,1633.3,4.59332]
[1693647387552,12.4313089,1633.4,1633.3,4.59733434]
[1693647387950,20.3081089,1633.4,1633.3,0.00401434]
[1693647388153,20.3081089,1633.4,1633.2,4.59361]
[1693647388358,10.5642089,1633.3,1633.2,4.59361]
[1693647388558,19.7511689,1633.3,1633.2,4.59361]
[1693647388959,19.7511689,1633.3,1633.2,6.89049]
[1693647389659,19.7511689,1633.3,1633.2,6.89435733]
[1693647390958,17.4544289,1633.3,1633.2,6.89435733]
[1693647404375,14.9254289,1633.3,1633.2,6.89435733]
[1693647404570,17.3355289,1633.3,1633.2,6.89435733]
[1693647409778,19.6322689,1633.3,1633.2,4.59747733]
[1693647413282,19.6322689,1633.3,1633.2,6.89437733]
[1693647416385,19.6322689,1633.3,1633.2,4.59747733]
[1693647419091,2.3192489,1633.3,1633.2,9.76155085]
[1693647419382,5.519,1633.5,1633.2,17.57746085]
[1693647419589,0.02251414,1633.4,1633.3,7.78893648]
[1693647419779,7.81537,1633.6,1633.3,13.44435535]
[1693647419780,0.02251414,1633.5,1633.3,13.44435535]
[1693647419984,0.02251414,1633.4,1633.3,18.03785535]
[1693647420181,0.02251414,1633.5,1633.3,22.63135535]
[1693647420379,0.02251414,1633.4,1633.3,22.63135535]
[1693647420581,5.519,1633.6,1633.4,9.19037112]
[1693647420783,5.519,1633.6,1633.5,14.32294]
[1693647420983,5.54151345,1633.6,1633.5,14.32294]
[1693647421687,6.04363954,1633.6,1633.5,14.32294]
[1693647425588,8.33995954,1633.6,1633.5,14.32294]
[1693647425781,12.99379954,1633.6,1633.5,4.59292]
[1693647425980,20.46491954,1633.6,1633.4,4.59695112]
[1693647426186,5.54151345,1633.5,1633.4,4.59695112]
[1693647426485,12.43089345,1633.5,1633.4,2.30038112]
[1693647426687,14.72735345,1633.5,1633.4,2.30038112]
[1693647427686,14.72735345,1633.5,1633.4,0.00385112]
[1693647428594,14.72735345,1633.5,1633.4,2.30045112]
[1693647429689,14.72735345,1633.5,1633.4,2.2966]
[1693647431789,14.72735345,1633.5,1633.4,2.29661]
[1693647432383,14.72735345,1633.5,1633.3,7.55689535]
[1693647432592,7.97631345,1633.4,1633.3,9.85364535]
[1693647432793,14.86614345,1633.4,1633.3,9.85364535]
[1693647433092,14.86614345,1633.4,1633.3,7.38164535]
[1693647434090,14.86614345,1633.4,1633.3,10.24880887]
[1693647435490,14.86614345,1633.4,1633.3,12.54555887]
[1693647437594,0.02251345,1633.4,1633.3,12.54555887]
[1693647446995,0.02251438,1633.4,1633.3,12.54555887]
[1693647447601,0.02251438,1633.4,1633.3,12.54942026]
[1693647450800,0.02251438,1633.4,1633.3,18.06842026]
[1693647452803,2.49341438,1633.4,1633.3,18.06842026]
[1693647458409,2.55461438,1633.4,1633.3,18.06842026]
[1693647461113,10.37022438,1633.4,1633.3,7.38550674]
[1693647461711,17.26005438,1633.4,1633.3,5.08875674]
[1693647462610,17.26005438,1633.4,1633.3,5.08489535]
[1693647463113,17.26005438,1633.4,1633.3,7.38166535]
[1693647464711,17.26005438,1633.4,1633.3,5.08489535]
[1693647467619,17.26005438,1633.4,1633.3,0.49157535]
[1693647467807,17.26005438,1633.4,1633.3,5.08505535]
[1693647468814,17.26005438,1633.4,1633.3,0.49157535]
[1693647469114,14.96344438,1633.4,1633.3,5.08505535]
[1693647469320,14.96344438,1633.4,1633.3,7.38179535]
[1693647469816,17.26005438,1633.4,1633.3,0.49157535]
[1693647470216,14.96344438,1633.4,1633.3,7.38182535]
[1693647470616,14.96344438,1633.4,1633.3,7.38560837]
[1693647473024,14.96344438,1633.4,1633.3,6.89403302]
[1693647479124,17.26005438,1633.4,1633.3,4.59726302]
[1693647479829,17.26005438,1633.4,1633.3,2.30052302]
[1693647480521,17.26005438,1633.4,1633.3,4.59728302]
[1693647480722,14.96344438,1633.4,1633.3,6.89404302]
[1693647481634,5.60271438,1633.4,1633.3,12.05799654]
[1693647482533,10.19599438,1633.4,1633.3,12.05799654]
[1693647489335,2.31913438,1633.4,1633.3,12.05799654]
[1693647489534,0.02251438,1633.4,1633.3,17.57699654]
[1693647489930,6.02112609,1633.6,1633.3,17.57699654]
[1693647490237,0.02251317,1633.5,1633.4,11.91181063]
[1693647490742,0.02251317,1633.5,1633.4,11.91558483]
[1693647490929,0.02251317,1633.5,1633.4,14.78274835]
[1693647491238,10.61383609,1633.6,1633.4,14.78274835]
[1693647493146,8.31746609,1633.6,1633.4,14.78274835]
[1693647494142,6.02112609,1633.6,1633.4,14.78274835]
[1693647495049,6.08232609,1633.6,1633.4,14.78274835]
[1693647496140,8.37866609,1633.6,1633.4,14.78274835]
[1693647497347,10.67500609,1633.6,1633.4,14.78274835]
[1693647499252,13.25870609,1633.6,1633.4,14.78274835]
[1693647505758,13.25870609,1633.6,1633.4,15.27397254]
[1693647507755,2.5879,1633.5,1633.4,15.27397254]
[1693647541980,8.1069,1633.5,1633.4,15.27397254]
[1693647547390,10.40336,1633.5,1633.4,15.27397254]
[1693647548194,8.1069,1633.5,1633.4,15.27397254]
[1693647553201,10.40336,1633.5,1633.4,15.27397254]
[1693647553401,8.1069,1633.5,1633.4,15.27397254]
[1693647556506,10.40336,1633.5,1633.4,15.27397254]
[1693647557101,8.1069,1633.5,1633.4,15.27397254]
[1693647563005,8.60482609,1633.6,1633.4,15.27397254]
[1693647563205,8.1027,1633.6,1633.4,15.27397254]
[1693647563404,5.519,1633.6,1633.4,15.27397254]
[1693647563812,2.5448,1633.7,1633.5,5.519]
[1693647564010,2.5448,1633.7,1633.6,14.32242]
[1693647564502,2.5448,1633.7,1633.6,14.32595056]
[1693647596732,17.30976,1633.7,1633.6,0.00353056]
[1693647597940,17.30976,1633.7,1633.6,2.29986056]
[1693647599034,17.30976,1633.7,1633.6,0.00353056]
[1693647599434,17.30976,1633.7,1633.6,2.29986056]
[1693647599632,17.30976,1633.7,1633.6,4.59619056]
[1693647600540,17.30976,1633.7,1633.6,0.00353056]
[1693647600742,17.30976,1633.7,1633.6,2.29986056]
[1693647600938,17.30976,1633.7,1633.6,4.59619056]
[1693647602239,17.30976,1633.7,1633.6,2.29986056]
[1693647602441,17.30976,1633.7,1633.6,4.59619056]
[1693647602741,17.30976,1633.7,1633.6,2.29986056]
[1693647603342,17.30976,1633.7,1633.6,4.59619056]
[1693647603639,17.30976,1633.7,1633.6,2.29986056]
[1693647604340,17.30976,1633.7,1633.6,4.59621056]
[1693647604541,17.30976,1633.7,1633.6,2.29986056]
[1693647605242,17.30976,1633.7,1633.6,4.59622056]
[1693647606243,17.30976,1633.7,1633.6,2.29986056]
[1693647607245,15.01357,1633.7,1633.6,4.59622056]
[1693647615847,15.01357,1633.7,1633.6,7.46338408]
[1693647616153,15.01357,1633.7,1633.6,9.75974408]
[1693647620356,14.95237,1633.7,1633.6,9.75974408]
[1693647627557,22.40730418,1633.8,1633.6,12.05610408]
[1693647627756,12.96050937,1633.8,1633.7,2.26993648]
[1693647627956,10.66436937,1633.8,1633.7,9.15850648]
[1693647628760,10.66436937,1633.8,1633.7,9.16188853]
[1693647628963,10.66436937,1633.8,1633.7,11.45807853]
[1693647636368,13.04476937,1633.8,1633.7,11.45807853]
[1693647640166,15.57626937,1633.8,1633.7,11.45807853]
[1693647641268,13.28008937,1633.8,1633.7,11.45807853]
[1693647642163,10.98401937,1633.8,1633.7,11.45807853]
[1693647642366,13.28005937,1633.8,1633.7,11.45807853]
[1693647642574,10.98401937,1633.8,1633.7,11.45807853]
[1693647643272,13.28007937,1633.8,1633.7,11.45807853]
[1693647643471,15.57613937,1633.8,1633.7,11.45807853]
[1693647644061,13.28007937,1633.8,1633.7,11.45807853]
[1693647644266,15.57613937,1633.8,1633.7,11.45807853]
[1693647647474,15.51493937,1633.8,1633.7,11.45807853]
[1693647652374,13.21887937,1633.8,1633.7,11.45807853]
[1693647653072,10.92281937,1633.8,1633.7,11.45807853]
[1693647656787,10.98401937,1633.8,1633.7,11.45807853]
[1693647698229,10.98401937,1633.8,1633.7,11.9427414]
[1693647709541,15.57609937,1633.8,1633.7,9.18814205]
[1693647709847,25.68717937,1633.8,1633.7,2.29956205]
[1693647710140,25.68717937,1633.8,1633.7,0.00338205]
[1693647710531,25.68717937,1633.8,1633.7,2.29956205]
[1693647710737,25.68717937,1633.8,1633.7,2.29618]
[1693647711135,25.68717937,1633.8,1633.7,4.59239]
[1693647713742,23.39113937,1633.8,1633.7,6.88861]
[1693647715246,23.39113937,1633.8,1633.7,4.59239]
[1693647715642,23.39113937,1633.8,1633.7,4.59637103]
[1693647716649,23.39113937,1633.8,1633.7,4.59239]
[1693647717243,25.68717937,1633.8,1633.6,6.88878]
[1693647717446,5.5802,1633.7,1633.6,6.88878]
[1693647717644,12.46874,1633.7,1633.6,6.88878]
[1693647720154,10.17256,1633.7,1633.6,6.88878]
[1693647722556,10.17256,1633.7,1633.6,9.75594352]
[1693647725154,10.17256,1633.7,1633.6,12.05230352]
[1693647731263,10.17256,1633.7,1633.6,9.18514]
[1693647732863,10.17256,1633.7,1633.6,9.18912989]
[1693647733567,10.17256,1633.7,1633.6,12.05629341]
[1693647735668,10.11136,1633.7,1633.6,12.05629341]
[1693647741878,10.11136,1633.7,1633.6,9.18912989]
[1693647742067,12.40757,1633.7,1633.6,6.89276989]
[1693647743068,12.40757,1633.7,1633.6,9.75993341]
[1693647743271,10.11136,1633.7,1633.6,9.75993341]
[1693647744172,5.519,1633.7,1633.6,12.05627341]
[1693647745175,10.11141,1633.7,1633.6,12.05627341]
[1693647745764,5.519,1633.7,1633.6,12.05627341]
[1693647746476,7.81518,1633.7,1633.6,12.05627341]
[1693647746770,10.11136,1633.7,1633.6,12.05627341]
[1693647747371,7.81518,1633.7,1633.6,12.05627341]
[1693647748074,5.519,1633.7,1633.6,12.05627341]
[1693647753176,6.00977107,1633.9,1633.6,17.57527341]
[1693647753482,8.077,1634.0,1633.7,7.78893648]
[1693647753780,8.077,1634.0,1633.8,12.05132352]
[1693647754075,8.077,1634.0,1633.9,2.26993648]
[1693647754380,12.66852,1634.0,1633.9,11.45361648]
[1693647755177,10.37276,1634.0,1633.9,11.45361648]
[1693647755979,8.077,1634.0,1633.9,11.45361648]
[1693647758384,10.37276,1634.0,1633.9,11.45361648]
[1693647758573,8.077,1634.0,1633.9,11.45361648]
[1693647760385,10.37276,1634.0,1633.9,11.45361648]
[1693647760585,8.077,1634.0,1633.9,11.45361648]
[1693647762686,8.077,1634.0,1633.9,11.45757979]
[1693647763280,7.8897,1634.1,1633.9,11.45757979]
[1693647763475,7.8897,1634.1,1634.0,2.86716352]
[1693647763680,7.8897,1634.1,1634.0,12.05028352]
[1693647765083,10.18532,1634.1,1634.0,12.05028352]
[1693647765281,7.8897,1634.1,1634.0,12.05028352]
[1693647769078,5.519,1634.1,1634.0,12.05028352]
[1693647777590,4.9871,1634.2,1634.0,17.56928352]
[1693647777791,4.9871,1634.2,1634.0,17.57323797]
[1693647778091,4.9871,1634.2,1634.1,11.45245648]
[1693647788299,4.9871,1634.2,1634.1,16.97145648]
[1693647788493,2.4697,1634.2,1634.1,16.97145648]
[1693647788799,10.65463259,1634.4,1634.1,16.97145648]
[1693647788996,10.65463259,1634.4,1634.2,2.86716352]
[1693647788997,4.7852,1634.3,1634.2,2.86716352]
[1693647789198,4.7852,1634.3,1634.2,14.31898]
[1693647792801,4.7852,1634.3,1634.2,14.32291529]
[1693647811915,4.7852,1634.3,1634.2,19.84191529]
[1693647812115,4.7852,1634.3,1634.2,20.32260786]
[1693647850942,4.7852,1634.3,1634.2,20.30340786]
[1693647871968,4.7852,1634.3,1634.2,14.78440786]
[1693647899585,7.08059,1634.3,1634.2,14.78440786]
[1693647901182,4.7852,1634.3,1634.2,14.78440786]
[1693647901380,7.08054,1634.3,1634.2,14.78440786]
[1693647902190,4.7852,1634.3,1634.2,14.78440786]
[1693647923109,0.07037852,1634.4,1634.2,20.30340786]
[1693647924207,2.36557852,1634.4,1634.2,20.30340786]
[1693647924512,9.27035851,1634.4,1634.2,12.48893786]
[1693647924710,5.5802,1634.3,1634.2,7.37103786]
[1693647925009,12.82481671,1634.3,1634.2,5.07556786]
[1693647925216,12.82481671,1634.3,1634.2,2.78010786]
[1693647925217,15.12014671,1634.3,1634.2,2.78010786]
[1693647925412,15.12014671,1634.3,1634.2,5.07558786]
[1693647926302,17.60544671,1634.3,1634.2,5.07558786]
[1693647927209,15.31011671,1634.3,1634.2,7.37109786]
[1693647929711,15.31011671,1634.3,1634.2,5.07558786]
[1693647929915,17.60544671,1634.3,1634.2,5.07558786]
[1693647930506,17.60544671,1634.3,1634.2,2.78010786]
[1693647932020,17.60544671,1634.3,1634.2,0.48462786]
[1693647938527,17.24682,1634.3,1634.2,0.48462786]
[1693647947728,17.18562,1634.3,1634.2,0.48462786]
[1693647969956,17.18562,1634.3,1634.2,0.48069257]
[1693647970257,17.18562,1634.3,1634.1,9.32673852]
[1693647970458,0.01919999,1634.2,1634.1,7.03117852]
[1693647970657,6.90560999,1634.2,1634.1,9.89834204]
[1693647970854,6.88641,1634.2,1634.1,9.89834204]
[1693647974063,6.90560999,1634.2,1634.1,9.89834204]
[1693647974263,6.90560999,1634.2,1634.1,12.19399204]
[1693647979664,6.90560999,1634.2,1634.1,9.32682852]
[1693647981968,12.42460999,1634.2,1634.1,9.82568034]
[1693647982268,14.72008999,1634.2,1634.1,7.53003034]
[1693647984558,14.72008999,1634.2,1634.1,10.39719386]
[1693647990373,14.78128999,1634.2,1634.1,10.39719386]
[1693647991974,9.26228999,1634.2,1634.1,10.39719386]
[1693647995070,9.26228999,1634.2,1634.1,7.53003034]
[1693647995272,9.26228999,1634.2,1634.1,10.39719386]
[1693647997179,9.26228999,1634.2,1634.1,12.69284386]
[1693648000577,9.24309,1634.2,1634.1,12.69284386]
[1693648002680,12.59509,1634.3,1634.1,14.98849386]
[1693648002986,4.78068,1634.3,1634.2,2.26993648]
[1693648003188,2.4853,1634.3,1634.2,11.45185648]
[1693648004080,24.11500805,1634.4,1634.2,11.45185648]
[1693648004281,12.47527852,1634.4,1634.3,9.75318352]
[1693648004688,12.78816852,1634.4,1634.3,9.75318352]
[1693648004887,15.08346852,1634.4,1634.3,9.75318352]
[1693648005890,15.02226852,1634.4,1634.3,9.75318352]
[1693648006188,15.02226852,1634.4,1634.3,12.04855352]
[1693648008093,15.04146851,1634.4,1634.3,6.88602]
[1693648009193,15.04146851,1634.4,1634.3,9.75318352]
[1693648013693,15.02226852,1634.4,1634.3,9.75318352]
[1693648014286,15.04146851,1634.4,1634.3,9.75318352]
[1693648015692,15.10266851,1634.4,1634.3,9.75318352]
[1693648019188,15.08346852,1634.4,1634.3,9.75318352]
[1693648020999,15.10266851,1634.4,1634.3,9.75318352]
[1693648021895,9.58366851,1634.4,1634.3,9.75318352]
[1693648025199,9.58366851,1634.4,1634.3,6.88602]
[1693648026194,9.58366851,1634.4,1634.3,9.75318352]
[1693648026400,9.56446852,1634.4,1634.3,9.75318352]
[1693648030106,9.58366851,1634.4,1634.3,9.75318352]
[1693648031007,9.56446852,1634.4,1634.3,9.75318352]
[1693648037112,9.58366851,1634.4,1634.3,9.75318352]
[1693648039113,9.58366851,1634.4,1634.3,6.88602]
[1693648039910,9.58366851,1634.4,1634.3,9.75318352]
[1693648040918,9.56446852,1634.4,1634.3,9.75318352]
[1693648044713,6.95626852,1634.4,1634.3,9.75318352]
[1693648044916,0.00917852,1634.4,1634.3,17.56752352]
[1693648045112,10.36768,1634.6,1634.4,2.26993648]
[1693648045313,14.86143,1634.6,1634.5,9.75231352]
[1693648046218,12.5664,1634.6,1634.5,12.04740352]
[1693648047117,7.0474,1634.6,1634.5,12.04740352]
[1693648054312,0.48515275,1634.8,1634.5,17.56640352]
[1693648054510,4.58856,1635.1,1634.9,9.17796]
[1693648054712,2.06738956,1635.0,1634.9,9.17796]
[1693648054912,2.06738956,1635.0,1634.9,16.96689648]
[1693648055112,2.06738956,1635.0,1634.9,19.83406]
[1693648059323,2.12848956,1635.0,1634.9,19.83406]
[1693648062821,2.06738956,1635.0,1634.9,19.83406]
[1693648063215,2.4174,1635.1,1634.9,19.83406]
[1693648063523,5.0213,1635.1,1635.0,15.23349357]
[1693648064320,5.0213,1635.1,1635.0,15.29469357]
[1693648064727,2.6039,1635.1,1635.0,15.29469357]
[1693648065327,2.6599,1635.2,1635.1,0.0612]
[1693648065525,2.6599,1635.2,1635.1,14.37514]
[1693648066316,2.5988,1635.2,1635.1,14.37514]
[1693648066517,8.1229,1635.3,1635.1,14.37514]
[1693648066723,10.6505,1635.3,1635.1,14.37514]
[1693648067126,5.1315,1635.3,1635.1,19.89414]
[1693648072425,10.66969999,1635.3,1635.1,14.37514]
[1693648072731,6.94331,1635.2,1635.1,2.35541]
[1693648072933,6.94331,1635.2,1635.1,4.64965]
[1693648073126,6.94331,1635.2,1635.1,0.0612]
[1693648073319,6.94331,1635.2,1635.1,4.64962]
[1693648073523,6.94331,1635.2,1635.1,2.35541]
[1693648073729,6.94331,1635.2,1635.1,0.0612]
[1693648073930,6.94331,1635.2,1635.1,2.35541]
[1693648074429,9.23738,1635.2,1635.0,12.40195]
[1693648074626,9.40878999,1635.1,1635.0,10.10757]
[1693648074829,9.40878999,1635.1,1635.0,12.40195]
[1693648075033,11.84978999,1635.1,1635.0,12.40195]
[1693648076028,11.84978999,1635.1,1635.0,6.88295]
[1693648076535,11.84978999,1635.1,1635.0,4.58857]
[1693648076837,11.91088999,1635.1,1635.0,4.58857]
[1693648077535,11.91088999,1635.1,1635.0,6.88297]
[1693648080538,11.91088999,1635.1,1635.0,9.75013352]
[1693648080739,11.91088999,1635.1,1635.0,6.88297]
[1693648082140,11.91088999,1635.1,1635.0,9.75013352]
[1693648082837,0.0611,1634.8,1634.7,2.29476]
[1693648083139,0.0611,1634.8,1634.7,6.8842]
[1693648083140,4.66961999,1634.8,1634.7,6.8842]
[1693648083439,9.69991999,1634.8,1634.7,6.8842]
[1693648083841,11.99457999,1634.8,1634.7,4.58944]
[1693648084938,11.99457999,1634.8,1634.7,6.88426]
[1693648087135,25.32723999,1634.8,1634.3,4.59068]
[1693648087336,5.519,1634.4,1634.3,2.29527]
[1693648087543,12.48492999,1634.4,1634.3,4.59056]
[1693648087737,12.48492999,1634.4,1634.3,6.88588]
[1693648087940,17.49252999,1634.4,1634.3,6.88588]
[1693648108161,17.49252999,1634.4,1634.3,9.75304352]
[1693648109053,17.49252999,1634.4,1634.3,6.88588]
[1693648117761,19.78773999,1634.4,1634.2,4.60000796]
[1693648117963,19.78773999,1634.4,1634.2,2.30464796]
[1693648118466,19.78773999,1634.4,1634.2,0.00917796]
[1693648119067,19.78773999,1634.4,1634.2,2.30464796]
[1693648119463,19.78773999,1634.4,1634.2,0.00917796]
[1693648119665,5.5801,1634.3,1634.2,0.00917796]
[1693648119960,14.7615,1634.3,1634.2,0.00917796]
[1693648123270,14.7615,1634.3,1634.2,2.30465796]
[1693648123769,14.7615,1634.3,1634.2,4.60013796]
[1693648123966,12.46615,1634.3,1634.2,6.89561796]
[1693648124161,12.46615,1634.3,1634.2,9.76278148]
[1693648124672,12.46615,1634.3,1634.2,6.89561796]
[1693648129077,9.65922,1634.4,1634.2,12.05826148]
[1693648129372,7.11452,1634.4,1634.3,2.26993648]
[1693648129574,7.11452,1634.4,1634.3,9.15595648]
[1693648132178,0.0611,1634.4,1634.3,11.45129648]
[1693648132580,4.6515,1634.4,1634.3,11.45129648]
[1693648134182,2.3563,1634.4,1634.3,11.45129648]
[1693648136073,0.0611,1634.4,1634.3,11.45129648]
[1693648136279,2.3563,1634.4,1634.3,11.45129648]
[1693648139087,0.0611,1634.4,1634.3,11.45129648]
[1693648140083,12.75916,1634.6,1634.3,16.97029648]
[1693648140284,7.87503,1634.6,1634.4,2.86716352]
[1693648140578,2.35602,1634.6,1634.5,16.96917648]
[1693648140785,2.35605,1634.6,1634.5,16.96917648]
[1693648141486,4.651,1634.6,1634.5,16.96917648]
[1693648141779,0.0611,1634.6,1634.5,16.96917648]
[1693648141986,2.35602,1634.6,1634.5,11.45017648]
[1693648142489,2.37521999,1634.6,1634.5,11.45017648]
[1693648143187,0.08029999,1634.6,1634.5,11.45017648]
[1693648143687,2.35602,1634.6,1634.5,11.45017648]
[1693648143883,4.86991999,1634.6,1634.5,11.45017648]
[1693648144286,7.16483999,1634.6,1634.5,11.45017648]
[1693648147889,9.76343999,1634.6,1634.5,11.45017648]
[1693648148381,9.76343999,1634.6,1634.5,2.29506]
[1693648148588,19.87227999,1634.6,1634.4,2.29514]
[1693648149588,5.5801,1634.5,1634.4,4.59026]
[1693648149788,12.46528,1634.5,1634.4,4.59026]
[1693648152887,14.76034,1634.5,1634.4,4.59026]
[1693648155096,14.76034,1634.5,1634.4,6.88549]
[1693648161500,14.76034,1634.5,1634.4,4.59026]
[1693648165003,14.76034,1634.5,1634.4,6.88549]
[1693648165200,12.46528,1634.5,1634.4,6.88549]
[1693648168008,12.40418,1634.5,1634.4,6.88549]
[1693648181919,12.40418,1634.5,1634.4,9.75265352]
[1693648182415,12.40418,1634.5,1634.4,6.88549]
[1693648190025,14.69924,1634.5,1634.3,9.41883]
[1693648190225,0.01919999,1634.4,1634.3,9.41883]
[1693648190425,6.90470999,1634.4,1634.3,9.41883]
[1693648190626,6.90470999,1634.4,1634.3,7.12357]
[1693648191932,14.92830999,1634.4,1634.3,7.12357]
[1693648192127,14.92830999,1634.4,1634.3,9.4189]
[1693648196436,14.92830999,1634.4,1634.3,12.28606352]
[1693648196936,14.92830999,1634.4,1634.3,9.4189]
[1693648199433,14.92830999,1634.4,1634.3,12.28606352]
[1693648200137,14.90911,1634.4,1634.3,12.28606352]
[1693648200333,5.519,1634.4,1634.3,14.58139352]
[1693648200535,10.17003,1634.6,1634.3,20.10039352]
[1693648200738,12.46501,1634.6,1634.4,2.26993648]
[1693648200938,12.46501,1634.6,1634.5,9.75225352]
[1693648201433,12.40391,1634.6,1634.5,9.75225352]
[1693648201835,12.46501,1634.6,1634.5,9.75225352]
[1693648202139,10.17002,1634.6,1634.5,9.75225352]
[1693648204434,12.465,1634.6,1634.5,9.75225352]
[1693648205938,10.17002,1634.6,1634.5,9.75225352]
[1693648206641,10.18921999,1634.6,1634.5,9.75225352]
[1693648207040,10.17002,1634.6,1634.5,9.75225352]
[1693648207442,10.17002,1634.6,1634.5,12.04728352]
[1693648207443,10.10892,1634.6,1634.5,12.04728352]
[1693648209340,12.4039,1634.6,1634.5,12.04728352]
[1693648210439,10.10892,1634.6,1634.5,12.04728352]
[1693648212039,12.4039,1634.6,1634.5,9.75225352]
[1693648213248,10.10892,1634.6,1634.5,9.75225352]
[1693648214043,12.4039,1634.6,1634.5,9.75225352]
[1693648217555,12.42309999,1634.6,1634.5,9.75225352]
[1693648219151,12.4039,1634.6,1634.5,9.75225352]
[1693648219357,10.10892,1634.6,1634.5,9.75225352]
[1693648220158,12.4039,1634.6,1634.5,9.75225352]
[1693648220955,10.10892,1634.6,1634.5,9.75225352]
[1693648221559,12.4039,1634.6,1634.5,9.75225352]
[1693648223261,10.10892,1634.6,1634.5,9.75225352]
[1693648225862,10.17002,1634.6,1634.5,9.75225352]
[1693648226655,10.10892,1634.6,1634.5,9.75225352]